{"text_format":"1","workbook":"xlsx","n_sheets":1,"sheets":["Mileage Tracking Sheet"],"not_rendered":{"charts":0,"images":2,"macros":0,"external_links":0,"defined_names":0,"comments":0,"pivot_tables":0},"unopened":[],"bounds":{"document_bytes":16777216,"sheet_cells":100000,"rows_first":2000,"rows_last":500,"rows_between":2000,"halvings":0,"cell_chars":16384,"cell_head_chars":4096},"cells_cut":0,"cells_raw":0,"read":"whole","date_system":"1900"}

{"sheet":"Mileage Tracking Sheet","index":0,"n_rows":40,"n_cols":7,"rows_kept":40,"cut":false,"hidden":false,"merged":[[6,1,7,1],[6,2,7,2],[39,1,40,6],[4,4,4,5],[2,4,2,5],[3,4,3,5],[5,4,5,5],[6,6,7,6],[6,5,7,5],[6,3,6,4]]}
[null,"MILEAGE TRACKING SHEET"]
[]
[null,"EMP NAME",null,null,"REIMBURSEMENT RATE",null,0.56499999999999995]
[null,"EMP ID",null,null,"TOTAL MILES",null,{"$f":"SUM(F9:F38)","v":268}]
[null,"DEPT",null,null,"TOTAL REIMBURSEMENT",null,{"$f":"G3*G4","v":151.41999999999999}]
[]
[null,"DATE OF TRAVEL","PURPOSE OF TRAVEL","ODOMETER READINGS",null,"TOTAL MILES","ADDITIONAL COMMENTS"]
[null,null,null,"START","END"]
[null,null,null,8762,8941,{"$f":"SUM(E9-D9)","v":179}]
[null,null,null,9241,9330,{"$f":"SUM(E10-D10)","v":89}]
[null,null,null,null,null,0]
[null,null,null,null,null,0]
[null,null,null,null,null,0]
[null,null,null,null,null,0]
[null,null,null,null,null,0]
[null,null,null,null,null,0]
[null,null,null,null,null,0]
[null,null,null,null,null,0]
[null,null,null,null,null,0]
[null,null,null,null,null,0]
[null,null,null,null,null,0]
[null,null,null,null,null,0]
[null,null,null,null,null,0]
[null,null,null,null,null,0]
[null,null,null,null,null,0]
[null,null,null,null,null,0]
[null,null,null,null,null,0]
[null,null,null,null,null,0]
[null,null,null,null,null,0]
[null,null,null,null,null,0]
[null,null,null,null,null,0]
[null,null,null,null,null,0]
[null,null,null,null,null,0]
[null,null,null,null,null,0]
[null,null,null,null,null,0]
[null,null,null,null,null,0]
[null,null,null,null,null,0]
[null,null,null,null,null,0]
[]
[null,"CLICK HERE TO CREATE MILEAGE TRACKING SHEET TEMPLATES IN SMARTSHEET"]